bitfinex/quotes_ETHUSD_20250602
["timestamp","ask_amount","ask_price","bid_price","bid_amount"]
[1748829830989,0.37572732,2525.1,2524.9,3.96053749]
[1748829831188,4.638,2525.2,2524.9,3.96053749]
[1748829831356,0.3757644,2525.1,2524.9,3.96053749]
[1748829831556,4.638,2525.2,2524.8,3.96062806]
[1748829831757,0.37567437,2525.1,2524.8,3.96062806]
[1748829831954,0.37567437,2525.0,2524.8,3.96062806]
[1748829832290,0.55,2525.1,2524.7,3.96080448]
[1748829832474,0.55,2525.1,2524.8,3.96068479]
[1748829832475,0.55,2524.9,2524.8,3.96068479]
[1748829832679,0.92555634,2524.9,2524.8,3.96068479]
[1748829832864,0.55,2524.9,2524.8,3.96068479]
[1748829833065,0.92555246,2524.9,2524.7,3.9607526]
[1748829833284,0.55,2524.9,2524.6,3.9610044]
[1748829833607,0.55,2524.9,2524.7,3.96077605]
[1748829834014,0.55,2525.1,2524.6,3.96101599]
[1748829834181,0.55,2524.9,2524.5,4.74590938]
[1748829835210,0.55,2524.9,2524.5,3.96110938]
[1748829835414,0.55,2524.9,2524.2,1.076]
[1748829835415,6.29800399,2524.7,2524.2,1.076]
[1748829835596,0.7857,2524.8,2523.1,3.98325369]
[1748829835597,0.55,2524.3,2524.0,3.96188226]
[1748829836190,0.55,2524.3,2524.1,3.96179394]
[1748829836485,0.55,2524.3,2524.0,3.96189094]
[1748829836894,0.55,2524.3,2524.1,3.96176222]
[1748829837114,0.55,2524.3,2524.0,3.96190785]
[1748829837622,1.3357,2524.3,2523.9,3.96205097]
[1748829837916,0.55,2524.3,2524.1,3.96171091]
[1748829838086,0.55,2524.4,2523.7,3.96741705]
[1748829838285,0.55,2524.4,2524.1,3.96168624]
[1748829838611,0.55,2524.4,2524.2,3.96164934]
[1748829839175,4.5113659,2524.4,2523.8,0.58127171]
[1748829839379,4.51142031,2524.4,2523.8,3.96214396]
[1748829839578,1.92503767,2524.4,2524.0,3.96195128]
[1748829840097,1.92503767,2524.4,2523.9,3.96205283]
[1748829840098,0.55,2524.2,2523.9,3.96205283]
[1748829840301,0.55,2524.2,2523.7,3.96739077]
[1748829840302,0.55,2524.2,2524.0,3.96196041]
[1748829841693,0.55,2524.2,2523.9,3.96204588]
[1748829842616,0.55,2524.0,2523.7,0.005]
[1748829842817,0.55,2524.0,2523.7,3.96742624]
[1748829843019,0.55,2524.0,2523.8,3.96226916]
[1748829843422,0.55,2524.0,2523.7,0.005]
[1748829843579,4.635,2524.0,2523.7,0.005]
[1748829843785,4.635,2524.0,2523.7,3.96743273]
[1748829844033,4.635,2524.0,2523.7,0.005]
[1748829844331,0.55,2523.8,2523.7,0.005]
[1748829844920,6.29800399,2523.8,2523.7,0.005]
[1748829845097,1.3515,2523.8,2523.7,0.005]
[1748829845292,0.55,2523.8,2523.7,0.005]
[1748829846822,11.06008309,2523.8,2523.7,0.005]
[1748829849111,13.43808309,2523.8,2523.7,0.005]
[1748829854198,17.51708309,2523.8,2523.7,0.005]
[1748829856451,11.7680791,2523.8,2523.7,0.005]
[1748829856822,19.7680791,2523.8,2523.7,0.005]
[1748829857020,20.34722263,2523.8,2523.7,0.005]
[1748829857436,16.26922263,2523.8,2523.7,0.005]
[1748829857747,20.34922263,2523.8,2523.7,0.005]
[1748829857932,20.35222263,2523.8,2523.7,0.005]
[1748829858135,14.8902791,2523.8,2523.7,0.005]
[1748829858353,18.9742791,2523.8,2523.7,0.005]
[1748829858539,0.55,2523.8,2523.7,0.005]
[1748829858929,8.0,2523.9,2523.7,0.005]
[1748829859131,4.5122791,2523.8,2523.7,0.005]
[1748829860635,0.55,2523.8,2523.7,0.005]
[1748829860842,0.55,2523.9,2523.7,0.005]
[1748829861762,4.51213826,2523.9,2523.7,0.005]
[1748829862333,3.9622791,2523.8,2523.7,0.005]
[1748829862670,9.71028309,2523.8,2523.7,0.005]
[1748829862838,11.01328309,2523.8,2523.7,0.005]
[1748829863239,11.38724775,2523.8,2523.7,0.005]
[1748829863635,19.38724775,2523.8,2523.7,0.005]
[1748829864041,21.76524775,2523.8,2523.7,0.005]
[1748829864485,21.39128309,2523.8,2523.7,0.005]
[1748829864661,21.7706288,2523.8,2523.7,0.005]
[1748829864865,21.97719907,2523.8,2523.7,0.005]
[1748829865651,21.97736855,2523.8,2523.7,0.005]
[1748829867252,22.59831245,2523.8,2523.7,0.005]
[1748829868803,22.59853335,2523.8,2523.7,0.005]
[1748829871212,18.99472296,2523.8,2523.7,0.005]
[1748829872705,12.5132213,2523.2,2523.1,0.02]
[1748829872900,12.88775739,2523.2,2523.1,0.02]
[1748829873104,12.88809208,2523.2,2523.1,0.02]
[1748829874481,12.87409208,2523.2,2523.1,0.02]
[1748829875210,15.63922958,2523.2,2523.1,0.02]
[1748829876412,16.03482622,2523.2,2523.1,0.02]
[1748829876721,0.37487078,2523.2,2523.1,4.75097838]
[1748829876877,0.62478418,2523.7,2523.1,4.75097838]
[1748829876878,0.37519755,2523.4,2523.3,0.7676]
[1748829877913,0.37519755,2523.4,2523.3,4.73066424]
[1748829878220,2.7651375,2523.4,2523.3,0.7676]
[1748829878425,3.69033684,2523.4,2523.3,0.7676]
[1748829878720,0.55,2523.3,2523.1,0.7912]
[1748829878924,2.7651375,2523.2,2523.1,0.7912]
[1748829879693,3.3151375,2523.2,2523.1,0.7912]
[1748829880128,3.69031165,2523.2,2523.1,0.02]
[1748829880439,7.65353295,2523.2,2523.1,0.02]
[1748829881717,7.65349694,2523.2,2523.1,0.02]
[1748829882116,15.65349694,2523.2,2523.1,0.02]
[1748829882319,18.79239694,2523.2,2523.1,0.02]
[1748829882628,19.26131962,2523.2,2523.1,0.02]
[1748829883325,22.24847296,2523.2,2523.1,0.02]
[1748829884725,21.77955028,2523.2,2523.1,0.02]
[1748829884890,22.24847296,2523.2,2523.1,0.02]
[1748829885942,21.77955028,2523.2,2523.1,0.02]
[1748829886102,21.77927752,2523.2,2523.1,0.02]
[1748829887237,26.32285925,2523.2,2523.1,0.02]
[1748829887560,26.32285925,2523.2,2521.9,1.071]
[1748829887561,0.7583,2522.1,2520.1,0.02]
[1748829887764,5.75229084,2521.7,2521.2,0.766]
[1748829888051,6.97837508,2522.3,2521.7,0.766]
[1748829888262,1.69471232,2522.6,2521.7,0.766]
[1748829888263,0.37424793,2522.2,2521.9,3.96515777]
[1748829888403,0.37424793,2522.2,2521.7,0.766]
[1748829888404,0.55,2522.1,2522.0,4.36162283]
[1748829888612,0.37424793,2522.4,2522.0,4.36162283]
[1748829888613,0.55,2522.3,2522.0,0.39651578]
[1748829888932,0.55,2522.3,2521.9,3.96522103]
[1748829889439,0.55,2522.3,2521.9,3.96517715]
[1748829889643,0.55,2522.3,2521.9,3.96515606]
[1748829889804,0.55,2522.3,2521.8,3.96535274]
[1748829890005,4.51464868,2522.3,2521.7,4.73150303]
[1748829890229,0.55,2522.3,2521.8,3.9654165]
[1748829890405,0.55,2522.3,2521.9,3.96524486]
[1748829890617,0.55,2522.3,2521.7,0.766]
[1748829890932,0.55,2522.3,2521.8,3.96536242]
[1748829891137,0.55,2522.3,2521.9,4.74143974]
[1748829891316,0.37395259,2522.4,2522.0,3.96509201]
[1748829891317,0.55,2522.4,2522.0,3.96509201]
[1748829891517,0.55,2522.4,2522.0,3.96509961]
[1748829891722,0.55,2522.4,2522.1,3.96489329]
[1748829892068,0.55,2522.4,2521.9,0.7762]
[1748829892222,0.55,2522.4,2522.1,3.96485092]
[1748829892417,0.55,2522.4,2522.2,3.9647577]
[1748829892622,8.55,2522.5,2521.9,0.7762]
[1748829893220,8.55,2522.5,2522.0,3.96505309]
[1748829893811,12.51436172,2522.5,2521.9,4.74138709]
[1748829894010,12.51436172,2522.5,2522.0,3.96507369]
[1748829894254,8.55,2522.5,2522.1,3.96488186]
[1748829895517,8.55,2522.5,2522.2,3.96477826]
[1748829895718,8.55,2522.5,2522.0,3.96510705]
[1748829895935,8.55,2522.5,2522.2,3.96479169]
[1748829896339,8.55,2522.5,2522.1,3.96485713]
[1748829896974,8.55,2522.5,2522.1,3.96487174]
[1748829897675,8.55,2522.5,2522.2,3.96473487]
[1748829897853,8.55,2522.5,2522.1,3.96486906]
[1748829898171,8.55,2522.5,2522.2,3.96478221]
[1748829898371,8.55,2522.5,2522.0,3.9650886]
[1748829898577,8.55,2522.5,2522.1,3.96494984]
[1748829899179,0.55,2522.4,2522.1,3.96494984]
[1748829900787,2.378,2523.1,2522.2,0.7514]
[1748829901088,0.55,2522.6,2522.2,4.71610864]
[1748829901674,0.55,2522.6,2522.3,3.96463456]
[1748829902177,0.55,2522.6,2522.2,3.96476635]
[1748829902344,0.55,2522.5,2522.1,3.96487598]
[1748829902684,0.55,2522.1,2521.7,0.7514]
[1748829902972,4.51219288,2522.1,2521.6,3.96564264]
[1748829903178,0.54714642,2522.1,2521.6,3.96564264]
[1748829903350,3.14118331,2522.3,2521.8,3.96533757]
[1748829903553,6.73192147,2522.3,2521.8,3.96533757]
[1748829903879,2.76726945,2522.1,2521.7,3.9654847]
[1748829904375,6.90126945,2522.1,2521.7,3.9654847]
[1748829904579,4.134,2522.1,2521.8,3.96539039]
[1748829904939,0.55,2522.0,2521.9,3.9652216]
[1748829905135,4.684,2522.1,2522.0,4.72410705]
[1748829905573,0.55,2522.1,2522.0,4.72410705]
[1748829905775,6.53900349,2522.6,2522.0,4.72410705]
[1748829905979,1.60031346,2522.5,2522.2,3.96467709]
[1748829906278,4.685,2522.5,2522.2,3.96467709]
[1748829906480,0.8141,2522.8,2522.0,0.759]
[1748829906697,4.134,2522.6,2522.3,3.96454992]
[1748829906862,13.15173696,2522.8,2522.3,3.96454992]
[1748829907044,4.50676362,2522.7,2522.4,3.96434022]
[1748829907239,0.55,2522.6,2522.4,4.73663294]
[1748829907444,0.37376362,2522.7,2522.6,3.96416395]
[1748829907748,0.55,2522.8,2522.6,3.9640388]
[1748829907964,0.37383586,2523.0,2522.7,3.96395885]
[1748829908152,4.50783586,2523.1,2522.5,3.96432111]
[1748829908372,0.55,2523.0,2522.7,3.96393437]
[1748829908578,0.37383586,2523.0,2522.8,3.96383015]
[1748829908915,4.50683586,2523.2,2522.8,3.96376244]
[1748829909116,0.37383586,2523.1,2522.8,3.96376244]
[1748829909330,0.55,2523.1,2522.7,3.96393972]
[1748829909468,0.55,2522.7,2522.4,0.7722]
[1748829909672,0.55,2522.7,2522.0,4.75]
[1748829909673,12.5140898,2522.7,2522.2,3.96478075]
[1748829909929,0.55,2522.5,2522.1,4.76961336]
[1748829910088,0.55,2522.5,2522.2,3.96468027]
[1748829910279,0.55,2522.5,2522.1,4.76961336]
[1748829910624,0.92440904,2522.6,2522.2,3.96479264]
[1748829910990,0.92440904,2522.6,2522.3,3.96460439]
[1748829911419,0.92440904,2522.6,2522.2,3.96472536]
[1748829911601,0.37440904,2522.5,2522.2,3.96472536]
[1748829912304,0.37440904,2522.5,2522.3,3.96458505]
[1748829912872,0.37440904,2522.5,2522.4,3.96447827]
[1748829913081,0.55,2522.6,2522.5,3.96428031]
[1748829913295,6.61151465,2523.1,2522.6,4.75235289]
[1748829913494,0.37475485,2523.0,2522.6,0.7882]
[1748829913799,0.37475485,2522.9,2522.8,3.96384969]
[1748829914325,0.37475485,2523.0,2522.8,3.96384969]
[1748829914532,0.37475485,2522.9,2522.8,3.96384969]
[1748829914807,0.55,2523.1,2522.8,3.96384969]
[1748829915006,0.37478251,2523.0,2522.8,3.96384969]
[1748829915207,4.681,2523.1,2522.9,3.96369257]
[1748829915374,0.37477551,2523.0,2522.9,3.96369257]
[1748829915571,0.55,2523.1,2522.9,3.96369257]
[1748829915903,0.3748067,2523.0,2522.9,3.96369257]
[1748829916542,0.3748067,2523.1,2522.9,3.96369257]
[1748829916694,0.3748067,2523.0,2522.9,3.96369257]
[1748829916895,0.3748067,2523.1,2522.9,3.96369257]
[1748829917155,0.3748067,2523.0,2522.9,3.96369257]
[1748829917291,0.37476605,2523.1,2522.9,3.96369257]
[1748829917492,8.10671187,2523.4,2523.0,3.96353547]
[1748829917692,0.37484092,2523.3,2523.1,4.79216954]
[1748829917922,0.46850838,2523.6,2523.1,4.79216954]
[1748829917923,0.37484092,2523.5,2523.2,3.96313331]
[1748829918188,0.37484092,2523.5,2523.3,3.96304062]
[1748829918446,0.37484092,2523.5,2523.3,3.96297205]
[1748829918628,0.55,2523.5,2523.3,3.96297205]
[1748829918787,0.37484092,2523.5,2523.3,3.96297205]
[1748829919132,4.8956,2523.7,2523.3,3.96297205]
[1748829919133,0.37484092,2523.6,2523.3,3.96297205]
[1748829919333,0.92469011,2523.6,2523.3,3.96297205]
[1748829919487,0.37469011,2523.5,2523.3,3.96297205]
[1748829920096,0.55,2523.3,2522.9,3.96366582]
[1748829920300,0.55,2523.3,2522.9,3.96367515]
[1748829920630,0.55,2523.3,2523.1,3.96327378]
[1748829920831,0.55,2523.3,2523.2,3.9632213]
[1748829921027,0.55,2523.3,2523.0,3.9635092]
[1748829921028,0.37469011,2523.5,2523.3,4.76696424]
[1748829921228,0.55,2523.6,2523.5,3.96275014]
[1748829921738,0.55,2523.7,2523.5,3.96275014]
[1748829921894,0.55,2523.7,2523.3,0.8039]
[1748829922093,0.55,2523.5,2523.2,3.96317481]
[1748829922313,5.75450349,2523.3,2523.0,4.76733647]
[1748829922912,4.51332214,2523.2,2522.7,9.47183113]
[1748829923252,4.51332214,2523.2,2521.5,5.75450349]
[1748829923253,0.55,2522.9,2521.5,4.75]
[1748829923423,0.55,2522.9,2522.3,3.96460459]
[1748829923424,0.55,2522.5,2522.3,3.96460459]
[1748829924143,0.55,2522.5,2522.2,3.96475544]
[1748829924351,0.55,2522.5,2522.3,3.96453266]
[1748829924557,0.55,2522.5,2522.4,3.96447827]
[1748829926348,4.138,2522.8,2522.3,3.96463379]
[1748829926562,0.55,2522.7,2522.6,3.96416395]
[1748829926863,4.50825161,2523.0,2522.8,3.96376395]
[1748829927156,0.55,2522.9,2522.8,3.96376395]
[1748829927660,0.55,2522.9,2522.7,3.96393368]
[1748829927959,0.55,2522.9,2522.8,3.96384969]
[1748829928158,0.55,2522.9,2522.7,3.96389737]
[1748829929416,0.55,2522.9,2522.8,3.96384969]
[1748829929622,0.55,2523.0,2522.5,0.7881]
[1748829929850,0.55,2523.0,2522.6,3.96416395]
[1748829930345,0.55,2523.0,2522.7,3.96388429]
[1748829930548,0.55,2523.0,2522.8,3.96382565]
[1748829930744,0.55,2523.0,2522.9,3.96369257]
[1748829931254,4.679,2523.2,2523.1,3.96337838]
[1748829931552,0.55,2523.2,2523.1,3.96337838]
[1748829931754,0.55,2523.3,2523.2,3.9632213]
[1748829931914,0.37433639,2523.4,2523.2,3.9632213]
[1748829932328,0.55,2523.3,2523.2,3.9632213]
[1748829933065,0.55,2523.3,2523.1,3.96331731]
[1748829933958,0.92461019,2523.3,2523.1,3.96331731]
[1748829934154,0.37461019,2523.2,2523.1,3.96331731]
[1748829934356,0.55,2523.3,2522.4,4.77298452]
[1748829934557,7.09980349,2523.1,2522.8,3.96374617]
[1748829934761,11.06332972,2523.1,2522.6,3.96411686]
[1748829934928,0.55,2522.9,2522.5,3.96428933]
[1748829935264,0.55,2522.9,2522.4,3.96435337]
[1748829935265,0.55,2522.7,2522.4,3.96435337]
[1748829935447,0.55,2522.5,2522.4,3.96435337]
[1748829936332,4.68,2522.6,2522.5,3.96432111]
[1748829937124,4.679,2522.9,2522.8,3.96375912]
[1748829937326,0.92497516,2522.9,2522.8,3.96375912]
[1748829941344,0.37497516,2522.9,2522.8,5.5713352]
[1748829941545,0.37497516,2523.2,2523.0,3.96353547]
[1748829941855,0.37514505,2523.1,2523.0,3.96353547]
[1748829942055,0.55,2523.2,2523.0,3.96353547]
[1748829942243,0.37514505,2523.1,2523.0,3.96353547]
[1748829943674,0.7896,2523.6,2522.9,3.9636778]
[1748829943675,0.37523983,2523.2,2522.9,3.9636778]
[1748829943837,4.50224401,2523.5,2523.0,0.47784778]
[1748829944039,0.92524401,2523.4,2523.3,3.96297123]
[1748829944984,0.92524401,2523.4,2523.2,3.96314977]
[1748829945139,0.92524401,2523.3,2520.6,3.55760281]
[1748829945344,0.55,2523.1,2522.7,3.96400681]
[1748829945545,0.55,2522.8,2522.7,3.96400681]
[1748829945987,0.55,2523.1,2522.9,3.96357582]
[1748829946168,0.55,2523.1,2523.0,3.96353547]
[1748829946368,0.9251751,2523.1,2523.0,3.96353547]
[1748829947445,0.3751751,2523.1,2523.0,3.96353547]
[1748829950286,0.37522205,2523.1,2523.0,3.96353547]
[1748829951983,0.37522205,2523.1,2522.9,4.78927849]
[1748829952206,0.37537548,2523.0,2522.9,0.8257]
[1748829952403,0.37537548,2523.0,2522.9,4.78939257]
[1748829952617,0.37537548,2523.0,2522.9,5.66472752]
[1748829952782,5.14202757,2523.4,2523.2,3.96320991]
[1748829952783,0.55,2523.3,2523.2,3.96320991]
[1748829952982,0.92533956,2523.3,2523.1,3.96325224]
[1748829953299,0.37533956,2523.2,2523.0,3.96346435]
[1748829953512,0.37533956,2523.1,2523.0,3.96346435]
[1748829954665,8.55,2523.3,2523.2,3.9632213]
[1748829954906,8.92537825,2523.3,2523.2,3.9632213]
[1748829955106,0.92537825,2523.3,2523.2,3.9632213]
[1748829955268,8.37537825,2523.3,2523.2,3.9632213]
[1748829955599,0.37537825,2523.3,2523.2,3.9632213]
[1748829955779,0.37537825,2523.3,2523.2,4.75587996]
[1748829955979,4.117,2523.6,2523.4,3.96289065]
[1748829956216,0.37540085,2523.5,2523.3,3.96298779]
[1748829956388,0.37540085,2523.4,2523.3,3.96298779]
[1748829957502,0.37540085,2523.4,2523.0,3.96353547]
[1748829957709,0.37540085,2523.3,2523.2,3.9632213]
[1748829958513,0.37532288,2523.3,2523.2,3.9632213]
[1748829958967,6.30450349,2523.6,2523.3,3.96298776]
[1748829959166,0.9253228,2523.5,2523.4,3.96290718]
[1748829959404,0.9253228,2523.5,2523.3,3.96298538]
[1748829959579,0.3753228,2523.4,2523.3,3.96298538]
[1748829960417,0.3753228,2523.4,2523.3,5.54840605]
[1748829960915,0.3753228,2523.4,2523.3,4.75560605]
[1748829961127,0.3753228,2523.6,2523.5,3.96275014]
[1748829961424,4.683,2523.9,2523.8,3.9622791]
[1748829961583,5.05837499,2523.9,2523.8,3.9622791]
[1748829961917,0.39537954,2523.9,2523.8,3.9622791]
[1748829963304,0.39537954,2523.9,2523.7,3.96236101]
[1748829963527,0.02,2523.9,2523.7,3.96236101]
[1748829963723,0.37499423,2523.8,2523.7,3.96236101]
[1748829963878,0.02,2523.9,2523.7,3.96236101]
[1748829964212,0.02,2523.9,2523.8,3.9622791]
[1748829964407,0.39497193,2523.9,2523.8,3.9622791]
[1748829965386,0.39497193,2523.9,2523.5,3.9626544]
[1748829965595,0.55,2523.7,2523.5,3.96272364]
[1748829965799,0.55,2523.7,2523.3,4.77520682]
[1748829966012,0.55,2523.7,2523.5,3.96270495]
[1748829966209,0.55,2523.7,2523.6,3.96259312]
[1748829967124,0.92497193,2523.8,2523.7,3.9624361]
[1748829967538,0.92497193,2523.8,2523.4,3.96282941]
[1748829967539,0.55,2523.7,2523.4,3.96282941]
[1748829967697,0.55,2523.7,2523.3,0.8122]
[1748829967698,6.67180607,2523.7,2523.3,0.8122]
[1748829968029,0.37483343,2523.6,2523.4,3.96288605]
[1748829968234,0.37486665,2523.6,2523.4,3.96288605]
[1748829969441,0.37490555,2523.6,2523.5,3.96275014]
[1748829970225,0.37490555,2523.8,2523.7,3.9624361]
[1748829970505,0.55,2523.8,2523.7,3.9624361]
[1748829972142,0.92496231,2523.8,2523.7,3.9624361]
[1748829972300,0.37496231,2523.8,2523.7,3.9624361]
[1748829972503,0.02,2523.9,2523.8,3.9622791]
[1748829972703,0.94496409,2523.9,2523.8,3.9622791]
[1748829973006,0.57,2523.9,2523.8,3.9622791]
[1748829973219,0.94496409,2523.9,2523.8,3.9622791]
[1748829973415,0.57,2523.9,2523.7,3.96236853]
[1748829973629,0.94496409,2523.9,2523.7,3.96240505]
[1748829973829,0.37496409,2523.8,2523.7,3.96240505]
[1748829974738,0.37496409,2523.8,2523.5,0.7884]
[1748829974908,0.37496409,2523.8,2523.7,3.9624361]
[1748829975106,0.37488069,2523.8,2523.7,3.9624361]
[1748829975842,0.37487832,2523.8,2523.7,3.9624361]
[1748829976004,0.02,2523.9,2523.8,3.9622791]
[1748829976412,0.39488645,2523.9,2523.8,3.9622791]
[1748829976617,0.02,2523.9,2523.7,3.96236559]
[1748829977138,0.37495331,2523.8,2523.7,3.96241248]
[1748829977504,0.02,2523.9,2523.8,3.9622791]
[1748829977706,0.39495911,2523.9,2523.8,3.9622791]
[1748829978101,0.02,2523.9,2523.8,4.75474826]
[1748829979036,0.02,2523.9,2523.8,5.53384826]
[1748829980715,0.02,2523.9,2523.8,11.2806824]
[1748829981112,0.02,2523.9,2523.8,5.53384826]
[1748829981424,0.02,2523.9,2523.8,19.2806824]
[1748829981852,0.02,2524.9,2523.8,19.2806824]
[1748829981853,0.02,2524.9,2524.8,4.76780975]
[1748829982147,0.02,2524.9,2524.8,5.64067516]
[1748829984435,0.02,2524.9,2524.8,13.64067516]
[1748829985831,0.02,2524.9,2524.8,19.3875093]
[1748829986549,0.02,2524.9,2524.8,19.79264403]
[1748829989247,0.02,2524.9,2524.8,19.23280989]
[1748829989911,0.02,2524.9,2524.8,5.64067516]
[1748829990014,0.02,2524.9,2524.8,3.96070975]
[1748829990556,0.02,2524.9,2524.7,3.96079059]
[1748829990714,0.8176,2524.8,2524.1,1.8823]
[1748829990910,0.8176,2524.8,2524.5,3.96110357]
[1748829991175,0.8176,2524.8,2524.4,3.96129817]
[1748829991325,4.77838099,2524.8,2524.2,3.96153086]
[1748829991524,4.77838099,2524.8,2524.1,0.7973]
[1748829991525,4.51087685,2524.7,2524.1,0.7973]
[1748829991741,0.55,2524.7,2524.1,0.56883368]
[1748829991945,3.96105721,2524.6,2524.1,4.53053587]
[1748829992115,0.55,2524.7,2524.1,0.56883368]
[1748829992311,0.55,2524.7,2524.1,4.53055025]
[1748829992312,4.51096459,2524.7,2524.1,4.53055025]
[1748829992522,3.96104122,2524.6,2524.1,4.53055025]
[1748829992725,0.55,2524.4,2523.8,5.83968786]
[1748829992963,4.51168095,2524.2,2523.8,1.085]
[1748829993260,0.55,2524.2,2523.8,1.085]
[1748829994022,0.55,2524.2,2523.8,5.04727504]
[1748829994226,0.55,2524.2,2523.9,3.96204512]
[1748829994522,0.55,2524.2,2523.9,3.96198459]
[1748829994717,0.7888,2524.3,2523.9,0.90092258]
[1748829994922,0.55,2524.6,2524.1,3.96170423]
[1748829995227,0.55,2524.6,2523.8,1.085]
[1748829995228,0.55,2524.6,2524.2,3.96160327]
[1748829995441,0.55,2524.6,2524.1,3.96174499]
[1748829995862,4.51104515,2524.6,2524.1,3.96174499]
[1748829996024,4.51104515,2524.6,2524.0,3.96189357]
[1748829996446,0.55,2524.6,2524.1,3.96169146]
[1748829996964,4.51103861,2524.6,2524.1,3.96169146]
[1748829997262,0.55,2524.6,2524.0,0.90089662]
[1748829997481,4.51102608,2524.6,2524.1,3.96172184]
[1748829997687,4.51102608,2524.6,2524.0,3.96190181]
[1748829997862,4.51102608,2524.6,2523.8,1.085]
[1748829997863,3.96151283,2524.3,2523.6,1.085]
[1748829998067,4.51140165,2524.4,2523.9,3.96211407]
[1748829998872,2.928,2524.4,2523.9,3.96211407]
[1748829999063,0.55,2524.4,2524.0,3.96194193]
[1748830000189,4.51139538,2524.4,2523.7,3.9624361]
[1748830000489,0.55,2524.4,2524.0,3.96184123]
[1748830000691,0.55,2524.4,2524.0,3.9618745]
[1748830000868,0.55,2524.4,2524.1,3.96170777]
[1748830001204,0.55,2524.4,2523.8,0.91614361]
[1748830001205,8.759,2524.7,2524.2,3.96155177]
[1748830001388,8.759,2524.7,2524.4,3.96133365]
[1748830001598,8.8176,2524.9,2524.1,4.9294]
[1748830001899,12.77823874,2524.9,2524.4,3.96124941]
[1748830002190,0.8176,2524.9,2524.4,3.96124941]
[1748830002505,0.8176,2524.9,2524.5,3.96118006]
[1748830002905,0.8176,2524.9,2524.6,3.96094793]
[1748830003913,0.8176,2524.9,2524.7,3.96075884]
[1748830004276,0.8176,2524.9,2524.5,3.9611206]
[1748830004708,0.8176,2524.9,2524.6,3.96094733]
[1748830004909,0.8176,2524.9,2524.7,3.96086163]
[1748830006282,0.8176,2524.9,2524.5,3.96113019]
[1748830006493,0.8176,2524.9,2524.6,3.96095047]
[1748830006808,0.02,2524.9,2524.5,0.90074852]
[1748830007015,0.02,2524.9,2524.5,3.96114688]
[1748830009010,1.3667,2524.8,2524.2,3.96157086]
[1748830009213,1.3667,2524.8,2524.3,3.96142197]
[1748830009518,5.32746271,2524.8,2524.3,3.96142197]
[1748830009996,3.96088197,2524.7,2524.2,3.96157035]
[1748830010315,5.32746272,2524.8,2524.3,5.33567952]
[1748830012289,4.51116403,2524.6,2524.1,3.96173773]
[1748830012910,3.9612572,2524.5,2524.0,5.04694768]
[1748830013213,3.9612572,2524.5,2523.8,4.87840836]
[1748830013214,3.96164545,2524.3,2523.8,4.87840836]
[1748830013416,4.51144282,2524.4,2523.8,0.91614361]
[1748830013608,4.51144282,2524.4,2523.8,3.96219448]
[1748830013609,3.96156645,2524.3,2523.8,3.96219448]
[1748830014287,4.51142002,2524.4,2523.8,3.96219448]
[1748830014797,4.51142002,2524.4,2523.9,3.96210763]
[1748830015020,0.55,2524.4,2524.0,3.96192712]
[1748830015221,0.7759,2524.8,2523.7,0.7661]
[1748830015519,0.7759,2524.8,2524.3,3.96135921]
[1748830015726,0.55,2524.7,2524.3,3.96135921]
[1748830016236,0.7759,2524.8,2524.2,0.7948]
[1748830016411,0.7759,2524.8,2524.4,3.96126518]
[1748830017408,0.7759,2524.8,2524.2,0.7948]
[1748830017606,0.39328852,2524.9,2524.2,0.7948]
[1748830017815,0.02,2524.9,2524.7,3.96083741]
[1748830018342,0.02,2524.9,2524.2,5.9858]
[1748830018343,0.02,2524.9,2524.8,3.96070975]
[1748830018635,0.02,2524.9,2524.7,3.96078979]
[1748830018925,0.39415523,2524.9,2524.6,3.96094319]
[1748830019126,0.02,2524.9,2524.6,3.96094319]
[1748830019532,0.02,2524.9,2524.6,3.96095216]
[1748830020219,4.33524014,2524.8,2524.3,3.9614023]
[1748830020425,0.92462726,2524.7,2524.3,3.9614023]
[1748830020646,0.55,2524.8,2524.3,0.79230357]
[1748830020827,0.37462286,2524.7,2524.2,3.96154061]
[1748830021137,0.55,2524.8,2524.4,3.96121192]
[1748830021339,0.37463437,2524.7,2524.4,3.96121192]
[1748830021509,0.55,2524.8,2524.5,3.96110319]
[1748830021694,0.37463992,2524.7,2524.5,3.96110319]
[1748830021903,4.677,2524.9,2524.5,3.96110319]
[1748830022114,0.37464286,2524.8,2524.5,3.96110319]
[1748830022315,0.37464286,2524.7,2524.5,3.96110319]
[1748830022645,4.677,2524.9,2524.6,3.96100303]
[1748830022845,0.3746342,2524.8,2524.7,3.96086663]
[1748830023153,0.3746342,2524.8,2524.5,3.96104796]
[1748830023336,4.677,2524.9,2524.5,4.35715276]
[1748830023536,0.37458479,2524.8,2524.5,4.35715276]
[1748830023842,0.57,2524.9,2524.5,4.35715276]
[1748830024028,0.3745996,2524.8,2524.5,4.35715276]
[1748830024225,0.57,2524.9,2524.5,4.35715276]
[1748830024434,0.37460111,2524.8,2524.6,3.96094085]
[1748830024633,0.37460111,2524.8,2524.5,4.35715276]
[1748830024634,0.57,2524.9,2524.5,4.35721229]
[1748830024806,0.37461689,2524.8,2524.4,3.96128574]
[1748830025005,4.53057363,2524.9,2524.4,3.96128574]
[1748830025244,0.37461862,2524.8,2524.4,3.96128574]
[1748830025440,4.53057363,2524.9,2524.4,3.96128574]
[1748830025746,0.37470899,2524.8,2524.4,3.96126924]
[1748830025946,4.53057099,2524.9,2524.4,4.75354459]
[1748830026147,0.37473325,2524.8,2524.4,4.75354459]
[1748830026354,0.57,2524.9,2524.5,3.9611584]
[1748830026643,0.37472924,2524.8,2524.5,3.9611584]
[1748830026843,0.57,2524.9,2524.5,3.9611584]
[1748830027045,0.37472882,2524.8,2524.5,3.9611584]
[1748830027240,0.57,2524.9,2524.4,0.79227535]
[1748830027447,0.3747275,2524.8,2524.5,3.96115727]
[1748830027655,0.57,2524.9,2524.5,3.96115727]
[1748830027959,0.37472321,2524.8,2524.4,3.96128609]
[1748830028118,4.53059713,2524.9,2524.4,4.75355416]
[1748830028318,0.55,2524.7,2524.3,3.9614866]